[Event "European Women Blitz-ch 2024"]
[Site "Monaco"]
[Date "2025.01.10"]
[Round "7.4"]
[White "Arabidze, Meri"]
[Black "Roebers, Eline"]
[Result "1/2-1/2"]
[Annotator "TA"]
[ECO "A81"]
[WhiteElo "2457"]
[BlackElo "2381"]
[PlyCount "154"]
[EventDate "2025.01.06"]
[EventType "swiss"]
[EventCountry "MNC"]
[SourceTitle "playchess.com"]
[Source "ChessBase"]
[SourceQuality "1"]
[TimeControl "180+2"]

{[%evp 85,154,22,174,161,142,0,0,0,0,0,0,0,136,131,126,111,513,511,493,447,524,524,984,839,875,457,4134,2896,2827,2620,29968,29962,29978,29978,29978,29979,29974,29974,29985,29985,29985,30,45,72,29973,4134,9419,0,0,0,0,0,0,0,0,0,0,0,0,0,0,0,0,0,0,0,0,0,0,0,0]} 1. d4 {[%emt 0:00:01]} f5 {[%emt 0:00:00]} 2. Nf3 {[%emt 0:00:04]} Nf6 {[%emt 0:00:01]} 3. g3 {[%emt 0:00:00]} g6 {[%emt 0:00:01]} 4. Bg2 {[%emt 0:00:01]} Bg7 {[%emt 0:00:01]} 5. O-O {[%emt 0:00:02]} O-O {[%emt 0:00:01]} 6. Nbd2 {[%emt 0:00:01]} Nc6 {[%emt 0:00:03]} 7. Re1 {[%emt 0:00:08]} Ne4 {[%emt 0:00:10]} 8. c3 {[%emt 0:00:02]} d5 {[%emt 0:00:08]} 9. Qc2 {[%emt 0:00:24]} a5 {[%emt 0:00:10]} 10. e3 {[%emt 0:00:09]} e6 {[%emt 0:00:11]} 11. c4 {[%emt 0:00:16]} b6 {[%emt 0:00:10]} 12. cxd5 {[%emt 0:00:19]} Nb4 {[%emt 0:00:01]} 13. Qb1 {[%emt 0:00:01]} Ba6 {[%emt 0:00:21]} 14. Bf1 {[%emt 0:00:12]} Bxf1 {[%emt 0:00:01]} 15. Rxf1 {[%emt 0:00:01]} exd5 {[%emt 0:00:01]} 16. Ne5 {[%emt 0:00:14]} Bxe5 {[%emt 0:00:18]} 17. dxe5 {[%emt 0:00:01]} Qe7 {[%emt 0:00:01]} 18. Nf3 {[%emt 0:00:23]} Nc6 {[%emt 0:00:23]} 19. b3 {[%emt 0:00:01]} Nxe5 {[%emt 0:00:31]} 20. Nxe5 {[%emt 0:00:02]} Qxe5 {[%emt 0:00:01]} 21. Bb2 {[%emt 0:00:00]} Qe7 {[%emt 0:00:04]} 22. Qd3 {[%emt 0:00:02]} Rad8 {[%emt 0:00:02]} 23. Rfd1 {[%emt 0:00:21]} c5 {[%emt 0:00:07]} 24. h4 {[%emt 0:00:19]} g5 {[%emt 0:00:11]} 25. hxg5 {[%emt 0:00:03]} Nxg5 {[%emt 0:00:02]} 26. Qc3 {[%emt 0:00:17]} Kf7 {[%emt 0:00:18]} 27. Qg7+ {[%emt 0:00:16]} Ke8 {[%emt 0:00:01]} 28. Qxe7+ {[%emt 0:00:01]} Kxe7 {[%emt 0:00:00]} 29. Kg2 {[%emt 0:00:00]} Ne4 {[%emt 0:00:28]} 30. Rh1 {[%emt 0:00:02]} Rf7 {[%emt 0:00:00]} 31. Rad1 {[%emt 0:00:04]} b5 {[%emt 0:00:04]} 32. Rh6 {[%emt 0:00:04]} Rd6 {[%emt 0:00:02]} 33. Rh5 {[%emt 0:00:05]} b4 {[%emt 0:00:04]} 34. Be5 {[%emt 0:00:07]} Rd7 {[%emt 0:00:03]} 35. Rh6 {[%emt 0:00:02]} c4 {[%emt 0:00:02]} 36. Ra6 {[%emt 0:00:04]} c3 {[%emt 0:00:03]} 37. Rxa5 {[%emt 0:00:01]} Ke6 {[%emt 0:00:02]} 38. Bd4 {[%emt 0:00:01]} Rd6 {[%emt 0:00:02]} 39. Kf3 {[%emt 0:00:05]} Rc7 {[%emt 0:00:02]} 40. Ke2 {[%emt 0:00:01]} Ng5 {[%emt 0:00:05]} 41. Rc1 {[%emt 0:00:03]} Ne4 {[%emt 0:00:01]} 42. Rc2 {[%emt 0:00:02]} h5 {[%emt 0:00:04]} 43. Rc1 {[%emt 0:00:01]} (43. Rb5 $16) 43... h4 $2 {[%emt 0:00:02]} (43... Rdc6 $11 {and Black is okay.}) 44. gxh4 $18 {[%emt 0:00:00]} Rh7 {[%emt 0:00:01]} 45. Rb5 {[%emt 0:00:03]} ({White should try} 45. f3 $16 Ng3+ 46. Kd3 (46. Kf2 f4 $16) 46... Rxh4 47. Ra4) 45... Ra6 $11 {[%emt 0:00:01]} 46. Rc2 {[%emt 0:00:01]} (46. Rxb4 $2 Rxa2+ 47. Kf1 (47. Ke1 $2 Rxh4 48. Rb6+ Kd7 $19) 47... Rxh4 (47... Nxf2 $2 48. Rb6+ Kd7 49. Rb7+ Ke6 50. Rxh7 $18) (47... Rxf2+ $2 48. Kg1 $19) 48. Rxc3 Rxf2+ (48... Nxc3 $2 49. Bxc3 Rxb4 50. Bxb4 $19) 49. Kg1 Rg4+ 50. Kh1 Nxc3 51. Bxc3 Rf3 52. Rxg4 fxg4 $19) 46... Rxh4 {[%emt 0:00:01]} 47. Rxb4 {[%emt 0:00:01]} Rh2 {[%emt 0:00:02]} 48. Kf3 {[%emt 0:00:03]} Rc6 {[%emt 0:00:04]} (48... Nd2+ $11 {keeps the balance.} 49. Kg3 Rh5 (49... Nf1+ 50. Kf4 $11)) 49. Rb6 $1 $16 {[%emt 0:00:02]} Rxb6 {[%emt 0:00:03]} 50. Bxb6 {[%emt 0:00:00]} Rxf2+ $2 {[%emt 0:00:01][%mdl 8192]} (50... Nd2+ $16 {is more resistant.} 51. Ke2 Ne4) 51. Rxf2 $18 {[%emt 0:00:04]} Nxf2 {[%emt 0:00:01]} 52. Ke2 $1 {[%emt 0:00:04]} (52. Kxf2 $2 c2 53. Ke2 c1=Q $19 (53... c1=B $2 54. b4 $18)) 52... Ne4 {[%emt 0:00:05]} 53. Kd3 {[%emt 0:00:01]} Kd6 {[%emt 0:00:02]} 54. Bd4 {[%emt 0:00:01]} Kc6 {[%emt 0:00:01]} 55. Bxc3 {[%emt 0:00:01]} Kb5 {[%emt 0:00:01]} (55... Ng5 $142 56. Bf6 Ne6) 56. a4+ $18 {[%emt 0:00:01]} Kc6 {[%emt 0:00:01]} 57. b4 {[%emt 0:00:02]} Nf2+ {[%emt 0:00:03]} 58. Kd4 {[%emt 0:00:05]} Nd1 {[%emt 0:00:01]} 59. b5+ {[%emt 0:00:04]} Kb6 {[%emt 0:00:01]} 60. Ba1 {[%emt 0:00:01]} Ka5 {[%emt 0:00:04]} 61. Kxd5 {[%emt 0:00:01]} Nxe3+ {[%emt 0:00:02] [#]} 62. Kc5 $1 {[%emt 0:00:02]} f4 {[%emt 0:00:03] [#]} 63. b6 $2 {[%emt 0:00:00]} (63. Bc3+ $1 {mates} Kxa4 64. b6 Kb3 65. Bd4 (65. b7 Kxc3 66. b8=Q f3 $18) 65... Kc2 66. b7 Ng4 67. b8=Q (67. b8=B f3 $11) 67... f3 68. Qg3) 63... Ka6 $1 $11 {[%emt 0:00:02]} 64. Bd4 {[%emt 0:00:02]} Nf5 $2 {[%emt 0:00:02][%mdl 8192]} (64... Nc2 $16) 65. Bf2 {[%emt 0:00:02]} (65. a5 $142 f3 66. Bg1 Kb7 67. Bf2 Ka6 68. Kc6 Ne7+ 69. Kd6 Ng6 70. Kc7) 65... Kb7 {[%emt 0:00:03]} 66. Kb5 $2 {[%emt 0:00:10]} ({Only move:} 66. a5 $18 {Strongly threatening Bg1.} f3 67. Bg1) 66... Nd6+ $11 {[%emt 0:00:02]} 67. Kb4 {[%emt 0:00:00]} f3 {[%emt 0:00:02]} 68. a5 {[%emt 0:00:00]} Ka6 {[%emt 0:00:01]} 69. Bc5 {[%emt 0:00:00]} Ne4 {[%emt 0:00:02]} 70. Be3 {[%emt 0:00:00]} f2 {[%emt 0:00:02]} 71. Bxf2 $1 {[%emt 0:00:01]} Nxf2 {[%emt 0:00:01]} 72. Kc5 {[%emt 0:00:01]} Nd3+ {[%emt 0:00:02]} 73. Kc6 {[%emt 0:00:01]} Nb4+ {[%emt 0:00:02]} 74. Kc7 {[%emt 0:00:05]} Kxa5 {[%emt 0:00:00]} 75. b7 {[%emt 0:00:01]} Na6+ {[%emt 0:00:01]} 76. Kc8 {[%emt 0:00:02]} Kb6 {[%emt 0:00:01]} 77. b8=Q+ {[%emt 0:00:11]} Nxb8 {[%emt 0:00:02]} 1/2-1/2

[Event "European Women Blitz-ch 2024"]
[Site "Monaco"]
[Date "2025.01.10"]
[Round "7.5"]
[White "Maltsevskaya, Aleksandra"]
[Black "Rudzinska, Michalina"]
[Result "1-0"]
[Annotator "TA"]
[ECO "B12"]
[WhiteElo "2368"]
[BlackElo "2226"]
[PlyCount "81"]
[EventDate "2025.01.06"]
[EventType "swiss"]
[EventCountry "MNC"]
[SourceTitle "playchess.com"]
[Source "ChessBase"]
[SourceQuality "1"]
[TimeControl "180+2"]

{[%evp 12,81,20,15,48,42,52,31,43,31,47,53,49,-9,63,59,104,97,93,82,88,102,117,113,108,37,181,135,553,521,640,557,826,688,783,647,564,327,1299,1258,1618,1574,1517,1360,1422,954,1706,1658,1574,1268,2018,1114,1107,1063,1042,1021,1101,1072,1191,1096,29981,5418,5397,931,29991,29992,29992,29992,29996,29997,29997,29998]} 1. e4 {[%emt 0:00:02]} c6 {[%emt 0:00:01]} 2. d4 {[%emt 0:00:05]} d5 {[%emt 0:00:01]} 3. e5 {[%emt 0:00:01]} Bf5 {[%emt 0:00:01]} 4. c4 {[%emt 0:00:02]} e6 {[%emt 0:00:02]} 5. h4 {[%emt 0:00:01]} h5 {[%emt 0:00:04]} 6. Nc3 {[%emt 0:00:02]} dxc4 {[%emt 0:00:04]} 7. Bxc4 {[%emt 0:00:02]} a6 {[%emt 0:00:04]} 8. Nge2 {[%emt 0:00:14]} Nd7 {[%emt 0:00:03]} 9. Ng3 {[%emt 0:00:03][%cal Og3f5]} Bg6 {[%emt 0:00:07]} 10. Be3 {[%emt 0:00:28]} Bb4 {[%emt 0:00:12]} 11. Be2 {[%emt 0:00:31][%cal Rg3h5]} Ne7 {[%emt 0:00:28]} 12. Bg5 {[%emt 0:01:55]} (12. a3 $14 Bxc3+ 13. bxc3) 12... Qa5 {[%emt 0:00:06]} (12... c5 $11) 13. O-O $1 $14 {[%emt 0:00:00][%cal Re2h5]} (13. Nxh5 Nd5 (13... Bxc3+ 14. bxc3 Rxh5 15. Bxh5 $11) (13... Rxh5 14. Bxh5 Bxc3+ 15. bxc3 $11) 14. Kf1 (14. Nxg7+ Kf8 $17) 14... Nxc3 15. bxc3 (15. Nxg7+ Kf8 $11) 15... Bxc3 $15) (13. Bxh5 $2 Bxc3+ (13... Rxh5 14. Nxh5 Bxc3+ 15. bxc3 $14) 14. bxc3 Qxc3+ (14... Rxh5 15. Nxh5 Bxh5 16. Qxh5 $14) 15. Bd2 (15. Kf1 $2 Rxh5 16. Nxh5 Bxh5 $19) 15... Qxd4 16. Bxg6 Nxg6 $19) 13... Bxc3 {[%emt 0:00:32]} 14. bxc3 {[%emt 0:00:00]} Qxc3 {[%emt 0:00:03]} 15. Rc1 {[%emt 0:00:00][%cal Ba1c1,Bc1b1,Bb1b7][%mdl 32]} (15. Nxh5 Bxh5 16. Bxh5 Nf5 $14) 15... Qa3 {[%emt 0:00:12]} 16. Bxh5 {[%emt 0:00:00]} Bxh5 {[%emt 0:00:16]} 17. Nxh5 {[%emt 0:00:00]} Kf8 {[%emt 0:00:32]} 18. Ng3 {[%emt 0:00:00]} (18. Rb1 $16 b5 19. Nxg7) 18... Rd8 {[%emt 0:00:10] [#]} ({Black should play} 18... Qxa2 $14 19. Rc3 Nd5) 19. Qg4 {[%emt 0:00:00]} (19. Qe2 $1 $18) 19... Nb6 $2 {[%emt 0:00:14][%mdl 8192]} (19... Re8 $16 {is tougher.} 20. Rb1 b6) 20. Rb1 $18 {[%emt 0:00:00]} Nbd5 {[%emt 0:00:14]} 21. Rxb7 {[%emt 0:00:00]} Qa4 {[%emt 0:00:07]} 22. h5 {[%emt 0:00:00]} c5 {[%emt 0:00:03] [#]} 23. h6 $1 {[%emt 0:00:04][%mdl 512]} gxh6 {[%emt 0:00:06]} 24. Bf6 {[%emt 0:00:02]} (24. Qh4 Ng6 25. Bxh6+ (25. Bxd8 $2 {perishes.} Nxh4 26. Bxh4 Kg7 $19) 25... Ke8 $18) 24... Rg8 $2 {[%emt 0:00:02] Repels Qg7+} (24... Nxf6 25. exf6 Ng6) 25. Qh4 {[%emt 0:00:01]} Ng6 {[%emt 0:00:04]} 26. Qxh6+ {[%emt 0:00:02]} Ke8 {[%emt 0:00:01][%cal Bf8e8,Be8d7,Bd7c8,Bc8b8][%mdl 32]} 27. Bxd8 {[%emt 0:00:03]} Qc6 {[%emt 0:00:02]} 28. Rb8 {[%emt 0:00:09]} Ndf4 {[%emt 0:00:02]} 29. f3 {[%emt 0:00:05] Intending Qh7 and mate.} Kd7 {[%emt 0:00:02]} 30. Qh7 {[%emt 0:00:03][%csl LRf7,LRg8]} Rf8 {[%emt 0:00:02][%cal Bg8f8,Bf8b8,Bb8b2][%mdl 32]} 31. Bg5 {[%emt 0:00:03]} Rxb8 {[%emt 0:00:02]} 32. Qxf7+ {[%emt 0:00:01]} Kc8 {[%emt 0:00:01]} 33. Bxf4 {[%emt 0:00:02]} Nxf4 {[%emt 0:00:02]} 34. Qxf4 {[%emt 0:00:01] Qf8+ is the strong threat.} Rb2 {[%emt 0:00:02]} 35. Ne4 {[%emt 0:00:04]} cxd4 {[%emt 0:00:04]} 36. Nd6+ {[%emt 0:00:02]} (36. Rc1 $142 Rc2 37. Rb1 (37. Qf8+ Kd7 $18) 37... Kc7 38. Qf7+ Qd7 39. Qf8 (39. Rb7+ Kxb7 40. Qxd7+ Rc7 $18) 39... Qb5 40. Qd6+ (40. Rxb5 axb5 41. Qe7+ Kc6 $18) 40... Kc8 41. Rxb5) 36... Kb8 {[%emt 0:00:02]} 37. Qxd4 {[%emt 0:00:03]} Rxa2 {[%emt 0:00:06]} 38. Rb1+ {[%emt 0:00:02]} Ka8 {[%emt 0:00:00]} 39. Qb4 {[%emt 0:00:02][%csl Gb1][%cal Rb4b8]} Qc7 {[%emt 0:00:00]} 40. Qe4+ {[%emt 0:00:02]} Ka7 {[%emt 0:00:00]} 41. Rb7+ {[%emt 0:00:02]} 1-0

[Event "European Women Blitz-ch 2024"]
[Site "Monaco"]
[Date "2025.01.10"]
[Round "7.6"]
[White "Khademalsharieh, Sarasadat"]
[Black "Papp, Petra"]
[Result "1/2-1/2"]
[Annotator "TA"]
[ECO "E62"]
[WhiteElo "2458"]
[BlackElo "2235"]
[PlyCount "50"]
[EventDate "2025.01.06"]
[EventType "swiss"]
[EventCountry "MNC"]
[SourceTitle "playchess.com"]
[Source "ChessBase"]
[SourceQuality "1"]
[TimeControl "180+2"]

{[%evp 19,50,51,56,60,59,57,58,48,55,58,60,58,51,52,57,58,95,45,64,58,66,0,0,0,0,0,0,0,0,0,0,0,0]} 1. d4 {[%emt 0:00:02]} Nf6 {[%emt 0:00:01]} 2. c4 {[%emt 0:00:02]} g6 {[%emt 0:00:02]} 3. g3 {[%emt 0:00:01]} Bg7 {[%emt 0:00:03]} 4. Bg2 {[%emt 0:00:01]} O-O {[%emt 0:00:03]} 5. Nc3 {[%emt 0:00:02]} d6 {[%emt 0:00:01]} 6. Nf3 {[%emt 0:00:01]} Nc6 {[%emt 0:00:02]} 7. O-O {[%emt 0:00:03]} e5 {[%emt 0:00:01]} 8. dxe5 {[%emt 0:00:02]} dxe5 {[%emt 0:00:01]} 9. Bg5 {[%emt 0:00:11]} h6 {[%emt 0:00:01]} 10. Qxd8 {[%emt 0:00:03]} Rxd8 {[%emt 0:00:04]} 11. Bxf6 {[%emt 0:00:02]} Bxf6 {[%emt 0:00:02]} 12. Nd5 {[%emt 0:00:01]} Bg7 {[%emt 0:00:59]} 13. Nxc7 {[%emt 0:00:04] White is slightly better.} Rb8 {[%emt 0:00:01]} 14. Rad1 {[%emt 0:00:17]} e4 {[%emt 0:00:14]} 15. Rxd8+ {[%emt 0:00:31]} Nxd8 {[%emt 0:00:02]} 16. Nd2 {[%emt 0:00:03]} f5 {[%emt 0:00:04][%cal Og7e5]} 17. b3 {[%emt 0:00:24]} Nc6 {[%emt 0:00:01][%cal Bd8c6,Bc6d4,Bd4c2][%mdl 32]} 18. Rd1 {[%emt 0:00:09] White is more active.} ({White should play} 18. e3 $16) 18... b6 {[%emt 0:00:14]} 19. f3 {[%emt 0:00:16]} Nd4 {[%emt 0:00:31]} 20. Kf2 {[%emt 0:00:21]} ({White should try} 20. Kh1 $14) 20... e3+ $1 $11 {[%emt 0:00:29] The position is equal.} 21. Kxe3 {[%emt 0:00:04]} Nc2+ {[%emt 0:00:01]} 22. Kd3 {[%emt 0:00:21]} ({Don't blunder} 22. Kf2 $2 Bd4+ 23. e3 Nxe3 $19) 22... Nb4+ {[%emt 0:00:01]} 23. Ke3 {[%emt 0:00:01] Black must now prevent Nb1.} Nc2+ {[%emt 0:00:01]} 24. Kd3 {[%emt 0:00:09]} ({Wrong is} 24. Kf2 $2 Bd4+ 25. e3 Nxe3 $19) 24... Nb4+ {[%emt 0:00:02]} 25. Ke3 {[%emt 0:00:01] Nb1 is the strong threat.} Nc2+ {[%emt 0:00:51] Weighted Error Value: White=0.12 (very precise) /Black=0.05 (flawless) .  Mistake:       	White=2     	---        Inaccurate:     	---       	Black=1      OK:         	White=4     	Black=5      Best:        	White=5     	Black=3      Strong:       	---       	Black=1} 1/2-1/2

[Event "European Women Blitz-ch 2024"]
[Site "Monaco"]
[Date "2025.01.10"]
[Round "7.7"]
[White "Javakhishvili, Lela"]
[Black "Tsolakidou, Stavroula"]
[Result "0-1"]
[Annotator "TA"]
[ECO "A49"]
[WhiteElo "2426"]
[BlackElo "2451"]
[PlyCount "106"]
[EventDate "2025.01.06"]
[EventType "swiss"]
[EventCountry "MNC"]
[SourceTitle "playchess.com"]
[Source "ChessBase"]
[SourceQuality "1"]
[TimeControl "180+2"]

{[%evp 15,106,14,6,-39,-43,-35,-50,-44,-35,-71,-36,-47,-32,-85,-97,-138,-62,-58,-61,-79,0,-23,-20,-24,-15,-13,-8,-41,-56,-47,-51,-158,-154,-153,-155,-184,-181,-169,-74,-142,-139,-139,-137,-325,-335,-335,-343,-352,-335,-392,-352,-389,-385,-389,-389,-438,-443,-580,-607,-659,-656,-650,-650,-659,-596,-844,-839,-820,-814,-805,-664,-937,-565,-1028,-882,-1035,-1035,-1019,-774,-861,-818,-742,0,-559,-496,-4622,-4622,-4622,-4622,-4622,-4618,-29990,-759]} 1. Nf3 {[%emt 0:00:02]} Nf6 {[%emt 0:00:01]} 2. b3 {[%emt 0:00:01]} g6 {[%emt 0:00:02]} 3. Bb2 {[%emt 0:00:01]} Bg7 {[%emt 0:00:01]} 4. g3 {[%emt 0:00:02]} O-O {[%emt 0:00:03]} 5. Bg2 {[%emt 0:00:02]} d6 {[%emt 0:00:01]} 6. d4 {[%emt 0:00:03]} b5 {[%emt 0:00:02]} 7. O-O {[%emt 0:00:11]} Bb7 {[%emt 0:00:01]} 8. a4 {[%emt 0:00:08]} b4 {[%emt 0:00:08]} 9. a5 {[%emt 0:00:07]} Na6 {[%emt 0:00:03]} 10. c4 {[%emt 0:00:03]} bxc3 {[%emt 0:00:02]} 11. Nxc3 {[%emt 0:00:02]} Rb8 {[%emt 0:00:11]} 12. Re1 $1 {[%emt 0:00:09]} Ne4 {[%emt 0:00:09]} 13. Bf1 {[%emt 0:00:24]} c5 {[%emt 0:00:14]} (13... Nxc3 $5 14. Bxc3 Nc5 $11) 14. e3 {[%emt 0:00:09]} (14. Nxe4 $15 Bxe4 15. Nd2) 14... Nb4 $17 {[%emt 0:00:11]} 15. Nd2 {[%emt 0:00:28] [#]} Nxd2 {[%emt 0:00:17]} ({Black should try} 15... Ng5 $1 $17 16. h4 Ne6 (16... cxd4 17. exd4 Ne6 18. Ra4 $17) 17. dxc5 dxc5 (17... Nxc5 18. Nc4 $17)) 16. Qxd2 $15 {[%emt 0:00:02]} cxd4 {[%emt 0:00:07]} 17. exd4 {[%emt 0:00:05]} Nd5 {[%emt 0:00:03]} (17... e6 $17) 18. Nxd5 {[%emt 0:00:22]} Bxd5 {[%emt 0:00:03]} 19. b4 {[%emt 0:00:01]} Qd7 {[%emt 0:00:14]} 20. b5 {[%emt 0:00:11]} Ba8 {[%emt 0:01:02]} 21. Rad1 {[%emt 0:00:26]} Rxb5 {[%emt 0:00:08]} 22. Bxb5 {[%emt 0:00:03]} Qxb5 {[%emt 0:00:02]} 23. Qe2 {[%emt 0:00:19] [#]} (23. Rxe7 $2 Qd5 24. f3 Qxf3 $19) (23. Qc3 $15) 23... Qxe2 $1 $17 {[%emt 0:00:07]} (23... Qxa5 24. d5 $14 (24. Qxe7 $2 Qd5 $19)) 24. Rxe2 {[%emt 0:00:02]} Bf3 {[%emt 0:00:01]} 25. Rde1 {[%emt 0:00:03]} Bxe2 {[%emt 0:00:02]} 26. Rxe2 {[%emt 0:00:01]} e6 {[%emt 0:00:04]} (26... Rb8 $19 {and Black stays clearly on top.} 27. Bc3 Rc8) 27. Ba3 {[%emt 0:00:02]} (27. d5 $142) 27... Bxd4 $17 {[%emt 0:00:08]} 28. Bxd6 {[%emt 0:00:01]} Rd8 {[%emt 0:00:02]} 29. Be5 $2 {[%emt 0:00:10]} (29. Bb4 $17 {keeps fighting.}) 29... Bxe5 $19 {[%emt 0:00:05]} 30. Rxe5 {[%emt 0:00:00]} Rd5 {[%emt 0:00:04]} 31. Re2 {[%emt 0:00:10]} Rxa5 {[%emt 0:00:02]} 32. Rb2 {[%emt 0:00:01]} g5 {[%emt 0:00:01]} 33. Kg2 {[%emt 0:00:02]} Kg7 {[%emt 0:00:01]} 34. Kf3 {[%emt 0:00:03]} Ra1 {[%emt 0:00:09]} 35. Kg4 {[%emt 0:00:02]} Kg6 {[%emt 0:00:02]} 36. h4 {[%emt 0:00:04]} h5+ {[%emt 0:00:02]} 37. Kf3 {[%emt 0:00:01]} gxh4 {[%emt 0:00:03]} 38. gxh4 {[%emt 0:00:00]} Ra4 {[%emt 0:00:03]} 39. Kg3 {[%emt 0:00:04]} a5 {[%emt 0:00:01]} 40. Rb7 {[%emt 0:00:01]} Rg4+ {[%emt 0:00:03]} 41. Kh3 {[%emt 0:00:01]} a4 {[%emt 0:00:02]} 42. Ra7 {[%emt 0:00:01]} Kf6 {[%emt 0:00:04]} 43. f3 {[%emt 0:00:01]} Rb4 {[%emt 0:00:03]} 44. Ra5 {[%emt 0:00:02]} e5 {[%emt 0:00:03]} 45. Kg3 {[%emt 0:00:02]} Kf5 {[%emt 0:00:03]} 46. Ra7 {[%emt 0:00:01]} f6 {[%emt 0:00:02]} 47. Ra8 {[%emt 0:00:01]} Ke6 {[%emt 0:00:05]} 48. Ra6+ {[%emt 0:00:03]} Kf5 {[%emt 0:00:03]} 49. Ra8 $1 {[%emt 0:00:01]} e4 {[%emt 0:00:03]} 50. Rh8 {[%emt 0:00:08]} (50. Ra5+ $142 Kg6 51. fxe4) 50... Rb3 $19 {[%emt 0:00:03]} 51. Rxh5+ {[%emt 0:00:02]} Kg6 {[%emt 0:00:01]} 52. Ra5 {[%emt 0:00:03]} Rxf3+ {[%emt 0:00:02]} (52... exf3 53. Rxa4 Rd3 54. Rg4+ Kh5 55. Ra4 $11) 53. Kg4 {[%emt 0:00:01]} f5+ {[%emt 0:00:01]} 0-1

[Event "European Women Blitz-ch 2024"]
[Site "Monaco"]
[Date "2025.01.10"]
[Round "7.8"]
[White "Guichard, Pauline"]
[Black "Wagner, Dinara"]
[Result "0-1"]
[Annotator "TA"]
[ECO "B14"]
[WhiteElo "2357"]
[BlackElo "2437"]
[PlyCount "60"]
[EventDate "2025.01.06"]
[EventType "swiss"]
[EventCountry "MNC"]
[SourceTitle "playchess.com"]
[Source "ChessBase"]
[SourceQuality "1"]
[TimeControl "180+2"]

{[%evp 17,60,7,24,0,0,0,0,0,12,0,0,0,8,-36,-6,-7,0,-20,-7,-37,-41,-49,-38,-43,-51,-44,-47,-79,-81,-169,-80,-919,-83,-547,-285,-296,-302,-275,-178,-29988,-29989,-29997,-29998,-29998,-29999]} 1. d4 {[%emt 0:00:01]} Nf6 {[%emt 0:00:10]} 2. c4 {[%emt 0:00:02]} e6 {[%emt 0:00:01]} 3. Nc3 {[%emt 0:00:01]} Bb4 {[%emt 0:00:02]} 4. e3 {[%emt 0:00:02]} O-O {[%emt 0:00:03]} 5. Bd3 {[%emt 0:00:01]} c5 {[%emt 0:00:00]} 6. Nf3 {[%emt 0:00:06]} d5 {[%emt 0:00:02]} 7. cxd5 {[%emt 0:00:02]} cxd4 {[%emt 0:00:02]} 8. exd4 {[%emt 0:00:06]} exd5 {[%emt 0:00:01]} 9. O-O {[%emt 0:00:04]} Bg4 {[%emt 0:00:01]} 10. h3 {[%emt 0:00:06]} Bh5 {[%emt 0:00:02]} 11. Bg5 {[%emt 0:00:06]} Bxc3 {[%emt 0:00:13]} 12. bxc3 {[%emt 0:00:03]} Qd6 {[%emt 0:00:00]} 13. Rb1 {[%emt 0:00:20]} b6 {[%emt 0:00:03]} 14. Re1 {[%emt 0:00:13] Wards off Ne4} Nbd7 {[%emt 0:00:01][%cal Of6e4]} 15. Re3 {[%emt 0:00:01]} Rfe8 {[%emt 0:00:04]} 16. Qe2 {[%emt 0:01:04]} Rxe3 {[%emt 0:00:11]} 17. Qxe3 {[%emt 0:00:10]} Re8 {[%emt 0:00:01] Prevents Ne5.} 18. Qd2 {[%emt 0:00:01]} Bxf3 {[%emt 0:00:28]} 19. gxf3 {[%emt 0:00:02]} h6 {[%emt 0:00:03]} 20. Bf4 {[%emt 0:00:01]} Qe6 {[%emt 0:00:01]} 21. Kg2 {[%emt 0:00:02][%cal Of4h6]} Nh5 {[%emt 0:00:05]} 22. Bh2 {[%emt 0:00:07][%cal Od2e3] [#]} Nf8 $1 {[%emt 0:00:16]} 23. Qc2 {[%emt 0:00:13] [#]} (23. Bg3 $17 {keeps fighting.}) 23... Ng6 {[%emt 0:00:04]} (23... Qf6 $1 $19 24. Bg3 Ne6) 24. Bf5 $2 {[%emt 0:00:11][%mdl 8192]} (24. Bxg6 $17 fxg6 25. Rb3) 24... Qf6 $2 {[%emt 0:00:11]} (24... Nh4+ $19 {has better winning chances.} 25. Kf1 Nxf5) 25. Bg4 $2 {[%emt 0:00:09][%mdl 8192]} (25. Bxg6 $17 Qg5+ (25... Qxg6+ 26. Qxg6 fxg6 27. Rb5 $11) (25... fxg6 26. Qd2 $15) 26. Kh1 fxg6 (26... Qxg6 27. Qxg6 fxg6 28. Kg2 $11) 27. Rg1) 25... Nhf4+ {[%emt 0:00:08]} 26. Kh1 {[%emt 0:00:16]} h5 {[%emt 0:00:00]} 27. Bd7 {[%emt 0:00:16]} Re7 {[%emt 0:00:01]} 28. Qa4 $2 {[%emt 0:00:01]} (28. Qf5 $19) 28... Nd3 {[%emt 0:00:15][%csl LRf2,LRf3] Excellent horsemanship.} 29. Rf1 {[%emt 0:00:06]} Qxf3+ {[%emt 0:00:02]} 30. Kg1 {[%emt 0:00:02]} Ne1 {[%emt 0:00:02]} 0-1